[Event "Late-Titled-Tuesday-Blitz-October-10-2023"]
[Site "Chess.com"]
[Date "2023.10.10"]
[Round "3"]
[White "German_Bazeev"]
[Black "adricalderon8"]
[Result "1/2-1/2"]
[WhiteElo "2802"]
[BlackElo "2510"]
[TimeControl "180+1"]
[EndTime "14:27:41 PDT"]
[Termination "Game drawn by repetition"]

1. c4 {[%clk 0:02:29.6]} 1... e5 {[%clk 0:02:58.6]} 2. Nc3 {[%clk 0:02:29.3]}
2... Nf6 {[%clk 0:02:57.1]} 3. Nf3 {[%clk 0:02:29.7]} 3... Nc6 {[%clk
0:02:56.1]} 4. e4 {[%clk 0:02:30.3]} 4... Bb4 {[%clk 0:02:54.3]} 5. d3 {[%clk
0:02:30.9]} 5... O-O {[%clk 0:02:53.5]} 6. Be2 {[%clk 0:02:31.4]} 6... d6 {[%clk
0:02:52.7]} 7. h3 {[%clk 0:02:32]} 7... a5 {[%clk 0:02:50.5]} 8. O-O {[%clk
0:02:31.6]} 8... h6 {[%clk 0:02:49.8]} 9. Be3 {[%clk 0:02:31.8]} 9... Nd7 {[%clk
0:02:46.9]} 10. Nd5 {[%clk 0:02:28.6]} 10... Bc5 {[%clk 0:02:44.9]} 11. Qd2
{[%clk 0:02:29.1]} 11... Nd4 {[%clk 0:02:41.7]} 12. Bxd4 {[%clk 0:02:28.9]}
12... Bxd4 {[%clk 0:02:41.2]} 13. Nxd4 {[%clk 0:02:28.9]} 13... exd4 {[%clk
0:02:42.1]} 14. Nf4 {[%clk 0:01:56]} 14... Qg5 {[%clk 0:02:39.4]} 15. Rad1
{[%clk 0:01:54.6]} 15... c6 {[%clk 0:02:33.4]} 16. g3 {[%clk 0:01:52.1]} 16...
Nc5 {[%clk 0:02:29.2]} 17. h4 {[%clk 0:01:50.7]} 17... Qe7 {[%clk 0:02:26.7]}
18. Rfe1 {[%clk 0:01:48.9]} 18... Bd7 {[%clk 0:02:19.9]} 19. Bf1 {[%clk
0:01:45.5]} 19... Rae8 {[%clk 0:02:19]} 20. Bg2 {[%clk 0:01:41.5]} 20... Qd8
{[%clk 0:02:16.9]} 21. Ne2 {[%clk 0:01:36.3]} 21... Ne6 {[%clk 0:01:41.5]} 22.
f4 {[%clk 0:01:09.2]} 22... Qb6 {[%clk 0:01:39.5]} 23. f5 {[%clk 0:01:07.8]}
23... Nc5 {[%clk 0:01:36.6]} 24. Kh2 {[%clk 0:01:02.3]} 24... f6 {[%clk
0:01:29.3]} 25. Nxd4 {[%clk 0:00:57.6]} 25... Qb4 {[%clk 0:01:20.5]} 26. Ne2
{[%clk 0:00:50.7]} 26... d5 {[%clk 0:01:10]} 27. Nf4 {[%clk 0:00:32.9]} 27...
dxe4 {[%clk 0:01:04.8]} 28. dxe4 {[%clk 0:00:25.2]} 28... Qxd2 {[%clk
0:01:04.3]} 29. Rxd2 {[%clk 0:00:26.1]} 29... Bxf5 {[%clk 0:01:04.3]} 30. Rde2
{[%clk 0:00:23.5]} 30... g5 {[%clk 0:00:54.8]} 31. exf5 {[%clk 0:00:21.2]} 31...
Rxe2 {[%clk 0:00:50.8]} 32. Nxe2 {[%clk 0:00:22.1]} 32... Re8 {[%clk 0:00:51.3]}
33. Bf3 {[%clk 0:00:21.1]} 33... Re3 {[%clk 0:00:49.3]} 34. Bh5 {[%clk
0:00:20.5]} 34... Nd3 {[%clk 0:00:47.3]} 35. Rd1 {[%clk 0:00:19.7]} 35... Nxb2
{[%clk 0:00:47]} 36. Rd7 {[%clk 0:00:18.1]} 36... Nxc4 {[%clk 0:00:45.6]} 37.
Nd4 {[%clk 0:00:17.1]} 37... Ne5 {[%clk 0:00:43]} 38. Rd8+ {[%clk 0:00:16.5]}
38... Kg7 {[%clk 0:00:40]} 39. Ne6+ {[%clk 0:00:16.9]} 39... Kh7 {[%clk
0:00:40.3]} 40. hxg5 {[%clk 0:00:13.4]} 40... hxg5 {[%clk 0:00:39.1]} 41. g4
{[%clk 0:00:12.3]} 41... Re2+ {[%clk 0:00:36.5]} 42. Kg3 {[%clk 0:00:12.9]}
42... Rxa2 {[%clk 0:00:35.9]} 43. Re8 {[%clk 0:00:11.5]} 43... Ra3+ {[%clk
0:00:34]} 44. Kf2 {[%clk 0:00:11.5]} 44... Ra2+ {[%clk 0:00:34.5]} 45. Kf1
{[%clk 0:00:12]} 45... Ra1+ {[%clk 0:00:34.3]} 46. Ke2 {[%clk 0:00:12.7]} 46...
Ra2+ {[%clk 0:00:34.8]} 47. Ke3 {[%clk 0:00:13.2]} 47... Ra3+ {[%clk 0:00:34.9]}
48. Kd2 {[%clk 0:00:13.9]} 48... Rd3+ {[%clk 0:00:33.6]} 49. Kc2 {[%clk
0:00:14]} 49... Rd4 {[%clk 0:00:24.8]} 50. Re7+ {[%clk 0:00:13.7]} 50... Kh6
{[%clk 0:00:24.8]} 51. Nf8 {[%clk 0:00:12.8]} 51... Rc4+ {[%clk 0:00:17]} 52.
Kb1 {[%clk 0:00:12.7]} 52... Rb4+ {[%clk 0:00:17.2]} 53. Ka2 {[%clk 0:00:13.1]}
53... Ra4+ {[%clk 0:00:15.3]} 54. Kb2 {[%clk 0:00:13.5]} 54... Rb4+ {[%clk
0:00:15.6]} 55. Kc2 {[%clk 0:00:14]} 55... Rc4+ {[%clk 0:00:15.7]} 56. Kd1
{[%clk 0:00:14.3]} 56... Rd4+ {[%clk 0:00:16.1]} 57. Kc2 {[%clk 0:00:10.7]}
57... Rc4+ {[%clk 0:00:16.4]} 1/2-1/2

[Event "Late-Titled-Tuesday-Blitz-October-10-2023"]
[Site "Chess.com"]
[Date "2023.10.10"]
[Round "3"]
[White "2346PL"]
[Black "Thormento16"]
[Result "0-1"]
[WhiteElo "2518"]
[BlackElo "2276"]
[TimeControl "180+1"]
[EndTime "14:27:41 PDT"]
[Termination "Thormento16 won by resignation"]

1. Nf3 {[%clk 0:02:56.5]} 1... d5 {[%clk 0:02:59.3]} 2. g3 {[%clk 0:02:56.5]}
2... e6 {[%clk 0:02:58.9]} 3. Bg2 {[%clk 0:02:56.8]} 3... Nf6 {[%clk 0:02:58.7]}
4. O-O {[%clk 0:02:57.1]} 4... Be7 {[%clk 0:02:57.2]} 5. d4 {[%clk 0:02:57.2]}
5... O-O {[%clk 0:02:54.4]} 6. c4 {[%clk 0:02:57.4]} 6... c6 {[%clk 0:02:52.6]}
7. b3 {[%clk 0:02:55.6]} 7... Nbd7 {[%clk 0:02:48.4]} 8. Bb2 {[%clk 0:02:55.6]}
8... dxc4 {[%clk 0:02:43.8]} 9. bxc4 {[%clk 0:02:55.4]} 9... c5 {[%clk
0:02:44.7]} 10. d5 {[%clk 0:02:54.2]} 10... exd5 {[%clk 0:02:18.9]} 11. cxd5
{[%clk 0:02:51.2]} 11... Nb6 {[%clk 0:02:19.1]} 12. Nc3 {[%clk 0:02:40.3]} 12...
Nbxd5 {[%clk 0:02:16.9]} 13. Nxd5 {[%clk 0:02:32.9]} 13... Qxd5 {[%clk
0:02:10.5]} 14. Ne5 {[%clk 0:02:26.8]} 14... Qxd1 {[%clk 0:02:10.3]} 15. Rfxd1
{[%clk 0:02:27.7]} 15... Rb8 {[%clk 0:02:07.7]} 16. Rac1 {[%clk 0:02:24]} 16...
Be6 {[%clk 0:01:59.9]} 17. Nc4 {[%clk 0:02:10]} 17... b6 {[%clk 0:01:58.9]} 18.
a4 {[%clk 0:02:02.4]} 18... Rfd8 {[%clk 0:01:58.1]} 19. Be5 {[%clk 0:01:57.7]}
19... Rxd1+ {[%clk 0:01:54.1]} 20. Rxd1 {[%clk 0:01:56.9]} 20... Rd8 {[%clk
0:01:55]} 21. Rxd8+ {[%clk 0:01:52.7]} 21... Bxd8 {[%clk 0:01:55.9]} 22. Nd6
{[%clk 0:01:52]} 22... Bd7 {[%clk 0:01:47.3]} 23. Nb5 {[%clk 0:01:45]} 23... a6
{[%clk 0:01:44.6]} 24. Nc7 {[%clk 0:01:44.2]} 24... Bxa4 {[%clk 0:01:34.6]} 25.
Nxa6 {[%clk 0:01:44.3]} 25... Bb5 {[%clk 0:01:25.3]} 26. Nb8 {[%clk 0:01:36.3]}
26... Bxe2 {[%clk 0:01:19.9]} 27. Nc6 {[%clk 0:01:36.4]} 27... Nd7 {[%clk
0:01:17.6]} 28. Bd6 {[%clk 0:01:34.7]} 28... Bf6 {[%clk 0:01:16.2]} 29. Bh3
{[%clk 0:01:21.4]} 29... Nf8 {[%clk 0:01:15.8]} 30. Na7 {[%clk 0:01:09.4]} 30...
c4 {[%clk 0:01:12.6]} 31. Bf1 {[%clk 0:01:02.2]} 31... Bxf1 {[%clk 0:01:08.7]}
32. Kxf1 {[%clk 0:01:02.8]} 32... Ne6 {[%clk 0:01:05.5]} 33. Ke2 {[%clk
0:00:58.2]} 33... Nd4+ {[%clk 0:00:59.9]} 34. Kd2 {[%clk 0:00:55.4]} 34... b5
{[%clk 0:00:57.2]} 35. Kd1 {[%clk 0:00:41.5]} 35... g5 {[%clk 0:00:53]} 36. Bc5
{[%clk 0:00:36.9]} 36... Ne6 {[%clk 0:00:48.5]} 37. Bd6 {[%clk 0:00:33.8]} 37...
Nd4 {[%clk 0:00:31.3]} 38. Bc5 {[%clk 0:00:33.4]} 38... Nb3 {[%clk 0:00:28.9]}
39. Bb4 {[%clk 0:00:32.7]} 39... Bd4 {[%clk 0:00:25.6]} 40. Nxb5 {[%clk
0:00:31.4]} 40... Bxf2 {[%clk 0:00:25.7]} 41. g4 {[%clk 0:00:30.8]} 41... Nd4
{[%clk 0:00:24]} 42. Nd6 {[%clk 0:00:29.7]} 42... Nf3 {[%clk 0:00:19.2]} 43. h3
{[%clk 0:00:29.3]} 43... Ng1 {[%clk 0:00:18.4]} 44. Bd2 {[%clk 0:00:26.3]} 44...
h6 {[%clk 0:00:17.6]} 45. Nf5 {[%clk 0:00:25.3]} 45... Kh7 {[%clk 0:00:17.6]}
46. Nd6 {[%clk 0:00:21.9]} 46... Kg6 {[%clk 0:00:15.1]} 47. Ne4 {[%clk
0:00:20.2]} 47... Bd4 {[%clk 0:00:13.5]} 48. Nd6 {[%clk 0:00:16.8]} 48... c3
{[%clk 0:00:13.4]} 49. Be1 {[%clk 0:00:17.2]} 49... Nxh3 {[%clk 0:00:13.2]} 50.
Nf5 {[%clk 0:00:15.9]} 50... Bc5 {[%clk 0:00:12.7]} 51. Kc2 {[%clk 0:00:14.7]}
51... Nf2 {[%clk 0:00:12.5]} 52. Bxf2 {[%clk 0:00:14.7]} 52... Bxf2 {[%clk
0:00:12.4]} 53. Kxc3 {[%clk 0:00:15.6]} 53... h5 {[%clk 0:00:12.8]} 54. Ne7+
{[%clk 0:00:15.9]} 54... Kf6 {[%clk 0:00:12.4]} 55. Nd5+ {[%clk 0:00:16.1]}
55... Ke5 {[%clk 0:00:12.9]} 56. Nb4 {[%clk 0:00:13.6]} 56... Be1+ {[%clk
0:00:12.4]} 57. Kc4 {[%clk 0:00:12.9]} 57... Bxb4 {[%clk 0:00:13.3]} 58. gxh5
{[%clk 0:00:12.4]} 58... Bf8 {[%clk 0:00:11.8]} 0-1

[Event "Late-Titled-Tuesday-Blitz-October-10-2023"]
[Site "Chess.com"]
[Date "2023.10.10"]
[Round "3"]
[White "MikeSailer"]
[Black "Grossboss19"]
[Result "1-0"]
[WhiteElo "2183"]
[BlackElo "2508"]
[TimeControl "180+1"]
[EndTime "14:27:43 PDT"]
[Termination "MikeSailer won on time"]

1. d4 {[%clk 0:03:00]} 1... c6 {[%clk 0:02:51.2]} 2. Bf4 {[%clk 0:02:57.8]} 2...
d5 {[%clk 0:02:50.1]} 3. e3 {[%clk 0:02:54.4]} 3... g6 {[%clk 0:02:47.8]} 4. Nd2
{[%clk 0:02:47.4]} 4... Bg7 {[%clk 0:02:47.6]} 5. Bd3 {[%clk 0:02:41.8]} 5...
Nf6 {[%clk 0:02:45.7]} 6. c3 {[%clk 0:02:40.5]} 6... O-O {[%clk 0:02:45.8]} 7.
h3 {[%clk 0:02:37.1]} 7... Re8 {[%clk 0:02:45.2]} 8. Ngf3 {[%clk 0:02:35.2]}
8... Kh8 {[%clk 0:02:40.9]} 9. O-O {[%clk 0:02:33.3]} 9... Bf5 {[%clk 0:02:41]}
10. Bxf5 {[%clk 0:02:31.8]} 10... gxf5 {[%clk 0:02:41.9]} 11. Ne5 {[%clk
0:02:31.6]} 11... Rf8 {[%clk 0:02:40.6]} 12. Ndf3 {[%clk 0:02:31.3]} 12... Nbd7
{[%clk 0:02:33.6]} 13. Qc2 {[%clk 0:02:19.3]} 13... e6 {[%clk 0:02:31.5]} 14. c4
{[%clk 0:02:19.8]} 14... Ne4 {[%clk 0:02:21.3]} 15. b4 {[%clk 0:02:13.3]} 15...
Rc8 {[%clk 0:02:15]} 16. a4 {[%clk 0:02:12.4]} 16... Qe7 {[%clk 0:02:07.2]} 17.
Nxd7 {[%clk 0:02:11.8]} 17... Qxd7 {[%clk 0:02:06.4]} 18. Rfc1 {[%clk
0:02:04.3]} 18... a6 {[%clk 0:01:53.3]} 19. Ne5 {[%clk 0:02:01.2]} 19... Bxe5
{[%clk 0:01:44]} 20. Bxe5+ {[%clk 0:02:00.6]} 20... f6 {[%clk 0:01:44.4]} 21.
Bh2 {[%clk 0:01:58.3]} 21... Rg8 {[%clk 0:01:40.4]} 22. f3 {[%clk 0:01:58.2]}
22... Nd6 {[%clk 0:01:37.5]} 23. c5 {[%clk 0:01:51.4]} 23... Nc4 {[%clk
0:01:33.1]} 24. Qf2 {[%clk 0:01:43.6]} 24... Rg6 {[%clk 0:01:17.8]} 25. Rcb1
{[%clk 0:01:35.4]} 25... Rcg8 {[%clk 0:01:16.4]} 26. b5 {[%clk 0:01:28.3]} 26...
axb5 {[%clk 0:01:15.1]} 27. axb5 {[%clk 0:01:27.6]} 27... cxb5 {[%clk
0:01:15.4]} 28. Bf4 {[%clk 0:01:12.7]} 28... Qg7 {[%clk 0:01:08.5]} 29. g4
{[%clk 0:01:05.1]} 29... fxg4 {[%clk 0:00:59.2]} 30. hxg4 {[%clk 0:01:02.7]}
30... f5 {[%clk 0:00:47.4]} 31. g5 {[%clk 0:00:50]} 31... Rxg5+ {[%clk
0:00:46.1]} 32. Bxg5 {[%clk 0:00:50.5]} 32... Qxg5+ {[%clk 0:00:47]} 33. Kf1
{[%clk 0:00:51.3]} 33... Nxe3+ {[%clk 0:00:42.5]} 34. Ke2 {[%clk 0:00:52.2]}
34... Nc4 {[%clk 0:00:36.1]} 35. Ra2 {[%clk 0:00:40.6]} 35... b4 {[%clk
0:00:19.4]} 36. Rxb4 {[%clk 0:00:32]} 36... Qc1 {[%clk 0:00:18.4]} 37. Rb3
{[%clk 0:00:12.1]} 37... Qh1 {[%clk 0:00:11.8]} 38. Kd3 {[%clk 0:00:06.8]} 38...
Qd1+ {[%clk 0:00:11.7]} 39. Kc3 {[%clk 0:00:05.8]} 39... Rg1 {[%clk 0:00:07.3]}
40. Kb4 {[%clk 0:00:06]} 40... Rf1 {[%clk 0:00:04.2]} 41. Ra8+ {[%clk
0:00:05.8]} 41... Kg7 {[%clk 0:00:03.9]} 42. Qg2+ {[%clk 0:00:06.7]} 42... Kh6
{[%clk 0:00:01.7]} 43. Qh3+ {[%clk 0:00:06.3]} 43... Kg5 {[%clk 0:00:01.9]} 44.
Qg3+ {[%clk 0:00:06.8]} 1-0

[Event "Late-Titled-Tuesday-Blitz-October-10-2023"]
[Site "Chess.com"]
[Date "2023.10.10"]
[Round "3"]
[White "familijatop71"]
[Black "EfrenRamos1"]
[Result "1/2-1/2"]
[WhiteElo "2155"]
[BlackElo "2398"]
[TimeControl "180+1"]
[EndTime "14:27:48 PDT"]
[Termination "Game drawn - insufficient material"]

1. e4 {[%clk 0:03:00.9]} 1... e5 {[%clk 0:02:57.3]} 2. Nf3 {[%clk 0:03:00.5]}
2... Nc6 {[%clk 0:02:57.2]} 3. Bc4 {[%clk 0:03:00.3]} 3... Nf6 {[%clk
0:02:56.7]} 4. d3 {[%clk 0:03:00.3]} 4... Bc5 {[%clk 0:02:56.1]} 5. O-O {[%clk
0:03:00.3]} 5... d6 {[%clk 0:02:55.6]} 6. h3 {[%clk 0:02:59.6]} 6... a5 {[%clk
0:02:55.1]} 7. a4 {[%clk 0:02:57.1]} 7... h6 {[%clk 0:02:54.5]} 8. Re1 {[%clk
0:02:56.2]} 8... Ba7 {[%clk 0:02:52.8]} 9. Nbd2 {[%clk 0:02:50.4]} 9... Ne7
{[%clk 0:02:52.2]} 10. c3 {[%clk 0:02:48.9]} 10... Ng6 {[%clk 0:02:51.5]} 11.
Nf1 {[%clk 0:02:45.5]} 11... c6 {[%clk 0:02:50.6]} 12. d4 {[%clk 0:02:45]} 12...
O-O {[%clk 0:02:42.8]} 13. Ng3 {[%clk 0:02:25.8]} 13... Re8 {[%clk 0:02:42]} 14.
Qc2 {[%clk 0:01:55.6]} 14... d5 {[%clk 0:02:39.5]} 15. exd5 {[%clk 0:01:53.6]}
15... cxd5 {[%clk 0:02:34.2]} 16. Bb5 {[%clk 0:01:39.2]} 16... Bd7 {[%clk
0:02:33.9]} 17. dxe5 {[%clk 0:01:31.7]} 17... Bxb5 {[%clk 0:02:29.5]} 18. axb5
{[%clk 0:01:30.9]} 18... Nd7 {[%clk 0:02:28.3]} 19. e6 {[%clk 0:01:26.4]} 19...
Nf6 {[%clk 0:02:20.3]} 20. exf7+ {[%clk 0:01:18.2]} 20... Kxf7 {[%clk
0:02:20.3]} 21. Bd2 {[%clk 0:01:15.4]} 21... Qc7 {[%clk 0:01:49.9]} 22. Nf5
{[%clk 0:01:04.6]} 22... Ne4 {[%clk 0:01:42.5]} 23. N3d4 {[%clk 0:00:58.3]}
23... Re5 {[%clk 0:01:35.5]} 24. Re2 {[%clk 0:00:42.1]} 24... Rae8 {[%clk
0:01:30.2]} 25. Rae1 {[%clk 0:00:41.9]} 25... Qd7 {[%clk 0:01:28.6]} 26. b4
{[%clk 0:00:37.7]} 26... axb4 {[%clk 0:01:24.1]} 27. cxb4 {[%clk 0:00:37.7]}
27... Rxf5 {[%clk 0:01:19.9]} 28. Nxf5 {[%clk 0:00:30.8]} 28... Qxf5 {[%clk
0:01:20.1]} 29. Be3 {[%clk 0:00:27.4]} 29... Bxe3 {[%clk 0:01:15.8]} 30. Rxe3
{[%clk 0:00:26.8]} 30... Rc8 {[%clk 0:01:09.5]} 31. Qd1 {[%clk 0:00:24.2]} 31...
Qxf2+ {[%clk 0:01:05.8]} 32. Kh2 {[%clk 0:00:21.9]} 32... Nf4 {[%clk 0:01:02.5]}
33. Qf3 {[%clk 0:00:15.1]} 33... Rc2 {[%clk 0:00:56.8]} 34. Qxf2 {[%clk
0:00:11.6]} 34... Rxf2 {[%clk 0:00:55.9]} 35. Rf3 {[%clk 0:00:11.8]} 35... Rxf3
{[%clk 0:00:54.7]} 36. gxf3 {[%clk 0:00:11.2]} 36... Nf6 {[%clk 0:00:54.7]} 37.
Ra1 {[%clk 0:00:10.2]} 37... b6 {[%clk 0:00:51.2]} 38. Ra7+ {[%clk 0:00:10.2]}
38... Kg6 {[%clk 0:00:50.9]} 39. Ra6 {[%clk 0:00:10.8]} 39... d4 {[%clk
0:00:50.7]} 40. Rxb6 {[%clk 0:00:10.6]} 40... Kf5 {[%clk 0:00:49]} 41. Rd6
{[%clk 0:00:10.8]} 41... N6d5 {[%clk 0:00:48.6]} 42. b6 {[%clk 0:00:09.7]} 42...
Nxb6 {[%clk 0:00:39.5]} 43. Rxb6 {[%clk 0:00:08.8]} 43... d3 {[%clk 0:00:39.7]}
44. Rd6 {[%clk 0:00:08.8]} 44... Ke5 {[%clk 0:00:40.6]} 45. Rd8 {[%clk
0:00:08.2]} 45... Nd5 {[%clk 0:00:40.8]} 46. Ra8 {[%clk 0:00:05.9]} 46... d2
{[%clk 0:00:40.3]} 47. Ra1 {[%clk 0:00:06.5]} 47... Ne3 {[%clk 0:00:40.1]} 48.
b5 {[%clk 0:00:06.2]} 48... Kd6 {[%clk 0:00:39.6]} 49. b6 {[%clk 0:00:04.8]}
49... d1=Q {[%clk 0:00:37.2]} 50. Rxd1+ {[%clk 0:00:03.3]} 50... Nxd1 {[%clk
0:00:37.1]} 51. Kg3 {[%clk 0:00:04.1]} 51... Nc3 {[%clk 0:00:34.7]} 52. Kg4
{[%clk 0:00:04.7]} 52... g6 {[%clk 0:00:34.1]} 53. b7 {[%clk 0:00:04.5]} 53...
Kc7 {[%clk 0:00:34]} 54. Kf4 {[%clk 0:00:05.2]} 54... Ne2+ {[%clk 0:00:33.8]}
55. Ke5 {[%clk 0:00:05.9]} 55... Ng1 {[%clk 0:00:32.3]} 56. Kf6 {[%clk
0:00:06.4]} 56... g5 {[%clk 0:00:32.5]} 57. Kg6 {[%clk 0:00:06.7]} 57... Nxf3
{[%clk 0:00:32.8]} 58. Kxh6 {[%clk 0:00:07.2]} 58... Kxb7 {[%clk 0:00:32.9]} 59.
Kh5 {[%clk 0:00:07.6]} 59... Kc6 {[%clk 0:00:33]} 60. Kg4 {[%clk 0:00:08.3]}
60... Ne5+ {[%clk 0:00:30.5]} 61. Kxg5 {[%clk 0:00:08.9]} 61... Kd5 {[%clk
0:00:30.6]} 62. h4 {[%clk 0:00:07.9]} 62... Nf3+ {[%clk 0:00:30.7]} 63. Kg4
{[%clk 0:00:06.6]} 63... Nxh4 {[%clk 0:00:31]} 1/2-1/2

[Event "Late-Titled-Tuesday-Blitz-October-10-2023"]
[Site "Chess.com"]
[Date "2023.10.10"]
[Round "3"]
[White "AlleyOoper"]
[Black "acertijo08"]
[Result "1-0"]
[WhiteElo "2589"]
[BlackElo "2386"]
[TimeControl "180+1"]
[EndTime "14:27:50 PDT"]
[Termination "AlleyOoper won by resignation"]

1. c4 {[%clk 0:02:57.5]} 1... Nf6 {[%clk 0:02:59.2]} 2. g3 {[%clk 0:02:57.5]}
2... e6 {[%clk 0:02:58.7]} 3. Bg2 {[%clk 0:02:57.5]} 3... d5 {[%clk 0:02:58.3]}
4. Nf3 {[%clk 0:02:56.1]} 4... c5 {[%clk 0:02:58.2]} 5. O-O {[%clk 0:02:55.3]}
5... Nc6 {[%clk 0:02:57.6]} 6. cxd5 {[%clk 0:02:54.8]} 6... exd5 {[%clk
0:02:58.5]} 7. d4 {[%clk 0:02:55.4]} 7... Be7 {[%clk 0:02:58.6]} 8. Nc3 {[%clk
0:02:56]} 8... O-O {[%clk 0:02:58.5]} 9. dxc5 {[%clk 0:02:55.6]} 9... Bxc5
{[%clk 0:02:58.4]} 10. Bg5 {[%clk 0:02:56.3]} 10... d4 {[%clk 0:02:58.2]} 11.
Ne4 {[%clk 0:02:56.9]} 11... Be7 {[%clk 0:02:56.5]} 12. Bxf6 {[%clk 0:02:57.4]}
12... Bxf6 {[%clk 0:02:56.6]} 13. b4 {[%clk 0:02:58.1]} 13... d3 {[%clk
0:02:36]} 14. Nxf6+ {[%clk 0:02:52.7]} 14... Qxf6 {[%clk 0:02:35.9]} 15. Qxd3
{[%clk 0:02:28]} 15... Nxb4 {[%clk 0:02:34.9]} 16. Qd4 {[%clk 0:02:28.4]} 16...
Qe7 {[%clk 0:02:20.7]} 17. Qb2 {[%clk 0:02:20.9]} 17... Nc6 {[%clk 0:02:13.1]}
18. Rfd1 {[%clk 0:02:11.7]} 18... Re8 {[%clk 0:02:05.8]} 19. Rd2 {[%clk
0:02:07.9]} 19... Bg4 {[%clk 0:01:49.3]} 20. Rad1 {[%clk 0:02:06.8]} 20... Rad8
{[%clk 0:01:44]} 21. h3 {[%clk 0:02:03.5]} 21... Rxd2 {[%clk 0:01:42.1]} 22.
Rxd2 {[%clk 0:02:03.8]} 22... Bh5 {[%clk 0:01:35.3]} 23. e3 {[%clk 0:01:47.4]}
23... h6 {[%clk 0:01:31.9]} 24. Nd4 {[%clk 0:01:46.1]} 24... Nxd4 {[%clk
0:01:31.5]} 25. Rxd4 {[%clk 0:01:45.8]} 25... b6 {[%clk 0:01:27.8]} 26. Qd2
{[%clk 0:01:45]} 26... Bg6 {[%clk 0:01:19]} 27. Rd7 {[%clk 0:01:40.7]} 27... Qa3
{[%clk 0:01:17.8]} 28. Bd5 {[%clk 0:01:36.6]} 28... Qa4 {[%clk 0:01:02.9]} 29.
Bb3 {[%clk 0:01:32.8]} 29... Qa3 {[%clk 0:00:51.5]} 30. Rc7 {[%clk 0:01:09.8]}
30... a5 {[%clk 0:00:45.4]} 31. Qd7 {[%clk 0:01:06.3]} 31... Rf8 {[%clk
0:00:38.5]} 32. Qc6 {[%clk 0:00:51.9]} 32... Qb4 {[%clk 0:00:35.2]} 33. Qxg6
{[%clk 0:00:45.8]} 33... Qxb3 {[%clk 0:00:32.3]} 34. Qxg7+ {[%clk 0:00:42]}
34... Kxg7 {[%clk 0:00:32.5]} 35. axb3 {[%clk 0:00:42.4]} 35... Rd8 {[%clk
0:00:30.8]} 36. Rb7 {[%clk 0:00:42.1]} 36... Rd6 {[%clk 0:00:30.7]} 37. Kg2
{[%clk 0:00:40.3]} 37... Kg6 {[%clk 0:00:30.2]} 38. g4 {[%clk 0:00:40.7]} 38...
f6 {[%clk 0:00:29]} 39. Kg3 {[%clk 0:00:40.8]} 39... h5 {[%clk 0:00:29.4]} 40.
f3 {[%clk 0:00:36.8]} 40... hxg4 {[%clk 0:00:28.8]} 41. hxg4 {[%clk 0:00:36.9]}
41... f5 {[%clk 0:00:28.3]} 42. gxf5+ {[%clk 0:00:35.6]} 42... Kxf5 {[%clk
0:00:28.1]} 43. e4+ {[%clk 0:00:36.2]} 43... Ke5 {[%clk 0:00:24.9]} 44. Rf7
{[%clk 0:00:33.5]} 44... Rg6+ {[%clk 0:00:22]} 45. Kf2 {[%clk 0:00:32.4]} 45...
Kd4 {[%clk 0:00:21.6]} 46. Rf5 {[%clk 0:00:30]} 46... Kc3 {[%clk 0:00:20.7]} 47.
Rb5 {[%clk 0:00:30.1]} 47... Kd4 {[%clk 0:00:15.6]} 48. e5 {[%clk 0:00:24]}
48... Rh6 {[%clk 0:00:12.9]} 49. Kg3 {[%clk 0:00:23]} 49... Ke3 {[%clk
0:00:12.1]} 50. Kg4 {[%clk 0:00:23.1]} 50... Rg6+ {[%clk 0:00:12]} 51. Kf5
{[%clk 0:00:23.5]} 51... Rg3 {[%clk 0:00:11.5]} 52. Rxb6 {[%clk 0:00:22.5]}
52... Rxf3+ {[%clk 0:00:11.8]} 53. Ke6 {[%clk 0:00:23]} 53... Kd4 {[%clk
0:00:12]} 54. Kd6 {[%clk 0:00:22.9]} 54... Rh3 {[%clk 0:00:10.7]} 55. e6 {[%clk
0:00:23.4]} 55... Rh6 {[%clk 0:00:10.5]} 56. Rb5 {[%clk 0:00:23.4]} 56... Kc3
{[%clk 0:00:10.1]} 57. Rxa5 {[%clk 0:00:23.5]} 57... Kxb3 {[%clk 0:00:10.5]} 58.
Re5 {[%clk 0:00:23.8]} 58... Kc4 {[%clk 0:00:09.1]} 59. Re4+ {[%clk 0:00:23.1]}
59... Kb5 {[%clk 0:00:08.4]} 60. Kd7 {[%clk 0:00:21]} 60... Rh1 {[%clk 0:00:05]}
61. e7 {[%clk 0:00:21.3]} 61... Rd1+ {[%clk 0:00:05.5]} 62. Ke6 {[%clk
0:00:21.8]} 1-0